Workbook

Sheet Member Count as of April 10 '23
A1: Company Name | C1: Annual Fees and Dues Amount
A2: Arterra Wines | B2: Agriculture | C2: 200
A3: 4P Foods | B3: Agriculture | C3: 200
A4: Naked Mountain Winery | B4: Agriculture | C4: 200
A5: Ovoka Farm | B5: Agriculture | C5: 200
A6: Moo Thru Mobile Warrenton | B6: Agriculture | C6: 200
A7: Hidden Hills Hemp | B7: Agriculture | C7: 200
A8: Barking Rose Brewing Co. + Farm | B8: Agriculture | C8: 200
A9: Jeff Metz LLC - Forestry Mulching and Tree Felling | B9: Agriculture | C9: 200
A10: Horse Sense Balanced Optimal Nutrition, LLC | B10: Agriculture | C10: 200
A11: Farm Credit of the Virginia's | B11: Agriculture | C11: 200
A12: Paws For Holistic Pet Care | B12: Agriculture | C12: 200
A13: Nova Hemp | B13: Agriculture | C13: 200
A14: Ahlstrom Farms | B14: Agriculture | C14: 200
A15: Crimson Lane Vineyards | B15: Agriculture | C15: 200
A16: 4Js Farm & Brewery | B16: Agriculture | C16: 200
A17: John Marshall Soil & Water Conservation District | B17: Not For Profit | C17: 150
A18: Community Touch, Inc. | B18: Not For Profit | C18: 165
A19: American Red Cross - Central and Shenandoah Virginia | B19: Not For Profit | C19: 165
A20: Boys & Girls Club of Fauquier | B20: Not For Profit | C20: 165
A21: Fauquier Community Theatre | B21: Not For Profit | C21: 165
A22: Fauquier County Public Library | B22: Not For Profit | C22: 165
A23: Fauquier County Public Schools | B23: Not For Profit | C23: 165
A24: Fauquier Free Clinic, Inc. | B24: Not For Profit | C24: 165
A25: Fauquier Habitat for Humanity | B25: Not For Profit | C25: 165
A26: Independence Empowerment Center, Inc. | B26: Not For Profit | C26: 165
A27: Laurel Ridge Community College | B27: Not For Profit | C27: 165
A28: Northern Piedmont Community Foundation | B28: Not For Profit | C28: 165
A29: Piedmont Dispute Resolution Center | B29: Not For Profit | C29: 165
A30: Piedmont Environmental Council | B30: Not For Profit | C30: 165
A31: Spiritual Care Support Ministries, Inc. | B31: Not For Profit | C31: 165
A32: PATH Foundation | B32: Not For Profit | C32: 165
A33: Mental Health Association of Fauquier County | B33: Not For Profit | C33: 165
A34: Liberty Community Church | B34: Not For Profit | C34: 165
A35: Rappahannock Rapidan Community Services | B35: Not For Profit | C35: 165
A36: Fauquier County Fair | B36: Not For Profit | C36: 165
A37: Allegro Community School of the Arts | B37: Not For Profit | C37: 165
A38: The Fauquier County Republican Committee | B38: Not For Profit | C38: 165
A39: Fauquier County Department of Fire, Rescue and Emergency Management | B39: Not For Profit | C39: 165
A40: Fauquier Community Food Bank and Thrift Store | B40: Not For Profit | C40: 165
A41: CASA Children's Intervention Services, Inc. | B41: Not For Profit | C41: 165
A42: Aging Together | B42: Not For Profit | C42: 165
A43: People Incorporated | B43: Not For Profit | C43: 165
A44: Cornerstone Baptist Church | B44: Not For Profit | C44: 165
A45: Leadership Fauquier | B45: Not For Profit | C45: 165
A46: Fauquier SPCA | B46: Not For Profit | C46: 165
A47: Rainforest Trust | B47: Not For Profit | C47: 165
A48: Northern Virginia Veterans Association | B48: Not For Profit | C48: 165
A49: Piedmont Corvette Club of Virginia | B49: Not For Profit | C49: 165
A50: Fauquier Excellence in Education Foundation | B50: Not For Profit | C50: 165
A51: Verdun Adventure Bound | B51: Not For Profit | C51: 165
A52: VolTran Volunteer Transportation Service | B52: Not For Profit | C52: 165
A53: Girls on the Run Piedmont | B53: Not For Profit | C53: 165
A54: Warrenton Salvation Army | B54: Not For Profit | C54: 165
A55: SpiritWorks Foundation | B55: Not For Profit | C55: 165
A56: Semper K9 Assistance Dogs | B56: Not For Profit | C56: 165
A57: The Bridge Community Church | B57: Not For Profit | C57: 165
A58: Northern Piedmont Sports Club - NPSC | B58: Not For Profit | C58: 165
A59: Hero's Bridge | B59: Not For Profit | C59: 165
A60: Experience Old Town Warrenton | B60: Not For Profit | C60: 165
A61: Journey U.P. Church | B61: Not For Profit | C61: 165
A62: Boulder Crest Retreat Foundation | B62: Not For Profit | C62: 165
A63: WARRENTON PREGNANCY CENTER | B63: Not For Profit | C63: 165
A64: Benevolence United | B64: Not For Profit | C64: 165
A65: Miss Commonwealth Scholarship Organization | B65: Not For Profit | C65: 165
A66: Middleburg Humane Foundation | B66: Not For Profit | C66: 165
A67: St. Michael's Academy | B67: Not For Profit | C67: 165
A68: 2ND TO NUNN SPORTS INC. | B68: Not For Profit | C68: 165
A69: Special Olympics Virginia Area 27 | B69: Not For Profit | C69: 165
A70: Fauquier County Parks and Recreation | B70: Not For Profit | C70: 165
A71: Faith Christian Church & International Outreach Center | B71: Not For Profit | C71: 165
A72: Great Commission Anglican Church | B72: Not For Profit | C72: 165
A73: NAACP Fauquier County Branch 7059-B | B73: Not For Profit | C73: 165
A74: Childhelp | B74: Not For Profit | C74: 165
A75: Virginia Career Works - Piedmont | B75: Not For Profit | C75: 165
A76: Fauquier Youth Orchestra | B76: Not For Profit | C76: 165
A77: Nalani Horse Rescue | B77: Not For Profit | C77: 165
A78: Ethnos College | B78: Not For Profit | C78: 165
A79: Heartland Hospice | B79: Not For Profit | C79: 165
A80: Family Shelter Services | B80: Not For Profit | C80: 165
A81: Northern Virginia Food Rescue | B81: Not For Profit | C81: 165
A82: Hospice Support of Fauquier County | B82: Not For Profit | C82: 165
A83: Foundations First | B83: Not For Profit | C83: 165
A84: Base-Kamp | B84: Not For Profit | C84: 165
A85: Hope Theater LLC | B85: Not For Profit | C85: 165
A86: The LEAP Foundation | B86: Not For Profit | C86: 165
A87: Afriwic International Organization | B87: Not For Profit | C87: 165
A88: Community Investment Collaborative | B88: Not For Profit | C88: 165
A89: FRC Fellowship of Christian Athletes (Fauquier, Rappahannock, Culpeper) | B89: Not For Profit | C89: 165
A90: Saint John the Evangelist Catholic School | B90: Not For Profit | C90: 165

Sheet Not for Profit
B1: Current Assigned Fees | C1: Current Rate | D1: EMP Rate | E1: $ Increase (Current v. EMP) | F1: % Increase (Current v. EMP) | G1: EMP Total Less | H1: EMP Rate Less | I1: % Increase (Current v. EMP Less) | J1: $ Increase (Current v. EMP Less)
G2: 0.1 | H2: =G2 -> 0.1 | I2: =G2 -> 0.1 | J2: =G2 -> 0.1
A3: John Marshall Soil & Water Conservation District | B3: Not For Profit | C3: 150 | D3: 245 | E3: =D3-C3 -> 95 | F3: =E3/D3 -> 0.387755102 | G3: =(D3/100)*(G2*100) -> 24.5 | H3: =D3-G3 -> 220.5 | I3: =(H3-C3)/H3 -> 0.3197278912 | J3: =H3-C3 -> 70.5
A4: Community Touch, Inc. | B4: Not For Profit | C4: 165 | D4: 245 | E4: =D4-C4 -> 80 | F4: =E4/D4 -> 0.3265306122 | G4: =(D4/100)*(G2*100) -> 24.5 | H4: =D4-G4 -> 220.5 | I4: 0.2517006803 | J4: =H4-C4 -> 55.5
A5: American Red Cross - Central and Shenandoah Virginia | B5: Not For Profit | C5: 165 | D5: 245 | E5: 80 | F5: =(D5-C5)/D5 -> 0.3265306122 | G5: =(D5/100)*(G2*100) -> 24.5 | H5: =D5-G5 -> 220.5 | I5: 0.2517006803 | J5: =H5-C5 -> 55.5
A6: Boys & Girls Club of Fauquier | B6: Not For Profit | C6: 165 | D6: 345 | E6: 180 | F6: =(D6-C6)/D6 -> 0.5217391304 | G6: =(D6/100)*(G2*100) -> 34.5 | H6: =D6-G6 -> 310.5 | I6: 0.4685990338 | J6: =H6-C6 -> 145.5
A7: Fauquier Community Theatre | B7: Not For Profit | C7: 165 | D7: 245 | E7: 80 | F7: =(D7-C7)/D7 -> 0.3265306122 | G7: =(D7/100)*(G2*100) -> 24.5 | H7: =D7-G7 -> 220.5 | I7: 0.2517006803 | J7: =H7-C7 -> 55.5
A8: Fauquier County Public Library | B8: Not For Profit | C8: 165 | D8: 345 | E8: 180 | F8: =(D8-C8)/D8 -> 0.5217391304 | G8: =(D8/100)*(G2*100) -> 34.5 | H8: =D8-G8 -> 310.5 | I8: 0.4685990338 | J8: =H8-C8 -> 145.5
A9: Fauquier County Public Schools | B9: Not For Profit | C9: 165 | D9: 1125 | E9: 960 | F9: =(D9-C9)/D9 -> 0.8533333333 | G9: =(D9/100)*(G2*100) -> 112.5 | H9: =D9-G9 -> 1012.5 | I9: 0.837037037 | J9: =H9-C9 -> 847.5
A10: Fauquier Free Clinic, Inc. | B10: Not For Profit | C10: 165 | D10: 245 | E10: 80 | F10: =(D10-C10)/D10 -> 0.3265306122 | G10: =(D10/100)*(G2*100) -> 24.5 | H10: =D10-G10 -> 220.5 | I10: 0.2517006803 | J10: =H10-C10 -> 55.5
A11: Fauquier Habitat for Humanity | B11: Not For Profit | C11: 165 | D11: 245 | E11: 80 | F11: =(D11-C11)/D11 -> 0.3265306122 | G11: =(D11/100)*(G2*100) -> 24.5 | H11: =D11-G11 -> 220.5 | I11: 0.2517006803 | J11: =H11-C11 -> 55.5
A12: Independence Empowerment Center, Inc. | B12: Not For Profit | C12: 165 | D12: 254 | E12: 89 | F12: =(D12-C12)/D12 -> 0.3503937008 | G12: =(D12/100)*(G2*100) -> 25.4 | H12: =D12-G12 -> 228.6 | I12: 0.2782152231 | J12: =H12-C12 -> 63.6
A13: Laurel Ridge Community College | B13: Not For Profit | C13: 165 | D13: 1125 | E13: 960 | F13: =(D13-C13)/D13 -> 0.8533333333 | G13: =(D13/100)*(G2*100) -> 112.5 | H13: =D13-G13 -> 1012.5 | I13: 0.837037037 | J13: =H13-C13 -> 847.5
A14: Northern Piedmont Community Foundation | B14: Not For Profit | C14: 165 | D14: 245 | E14: 80 | F14: =(D14-C14)/D14 -> 0.3265306122 | G14: =(D14/100)*(G2*100) -> 24.5 | H14: =D14-G14 -> 220.5 | I14: 0.2517006803 | J14: =H14-C14 -> 55.5
A15: Piedmont Dispute Resolution Center | B15: Not For Profit | C15: 165 | D15: 245 | E15: 80 | F15: =(D15-C15)/D15 -> 0.3265306122 | G15: =(D15/100)*(G2*100) -> 24.5 | H15: =D15-G15 -> 220.5 | I15: 0.2517006803 | J15: =H15-C15 -> 55.5
A16: Piedmont Environmental Council | B16: Not For Profit | C16: 165 | D16: 345 | E16: 180 | F16: =(D16-C16)/D16 -> 0.5217391304 | G16: =(D16/100)*(G2*100) -> 34.5 | H16: =D16-G16 -> 310.5 | I16: 0.4685990338 | J16: =H16-C16 -> 145.5
A17: Spiritual Care Support Ministries, Inc. | B17: Not For Profit | C17: 165 | D17: 245 | E17: 80 | F17: =(D17-C17)/D17 -> 0.3265306122 | G17: =(D17/100)*(G2*100) -> 24.5 | H17: =D17-G17 -> 220.5 | I17: 0.2517006803 | J17: =H17-C17 -> 55.5
A18: PATH Foundation | B18: Not For Profit | C18: 165 | D18: 1125 | E18: 960 | F18: =(D18-C18)/D18 -> 0.8533333333 | G18: =(D18/100)*(G2*100) -> 112.5 | H18: =D18-G18 -> 1012.5 | I18: 0.837037037 | J18: =H18-C18 -> 847.5
A19: Mental Health Association of Fauquier County | B19: Not For Profit | C19: 165 | D19: 245 | E19: 80 | F19: =(D19-C19)/D19 -> 0.3265306122 | G19: =(D19/100)*(G2*100) -> 24.5 | H19: =D19-G19 -> 220.5 | I19: 0.2517006803 | J19: =H19-C19 -> 55.5
A20: Liberty Community Church | B20: Not For Profit | C20: 165 | D20: 245 | E20: 80 | F20: =(D20-C20)/D20 -> 0.3265306122 | G20: =(D20/100)*(G2*100) -> 24.5 | H20: =D20-G20 -> 220.5 | I20: 0.2517006803 | J20: =H20-C20 -> 55.5
A21: Rappahannock Rapidan Community Services | B21: Not For Profit | C21: 165 | D21: 345 | E21: 180 | F21: =(D21-C21)/D21 -> 0.5217391304 | G21: =(D21/100)*(G2*100) -> 34.5 | H21: =D21-G21 -> 310.5 | I21: 0.4685990338 | J21: =H21-C21 -> 145.5
A22: Fauquier County Fair | B22: Not For Profit | C22: 165 | D22: 245 | E22: 80 | F22: =(D22-C22)/D22 -> 0.3265306122 | G22: =(D22/100)*(G2*100) -> 24.5 | H22: =D22-G22 -> 220.5 | I22: 0.2517006803 | J22: =H22-C22 -> 55.5
A23: Allegro Community School of the Arts | B23: Not For Profit | C23: 165 | D23: 245 | E23: 80 | F23: =(D23-C23)/D23 -> 0.3265306122 | G23: =(D23/100)*(G2*100) -> 24.5 | H23: =D23-G23 -> 220.5 | I23: 0.2517006803 | J23: =H23-C23 -> 55.5
A24: The Fauquier County Republican Committee | B24: Not For Profit | C24: 165 | D24: 245 | E24: 80 | F24: =(D24-C24)/D24 -> 0.3265306122 | G24: =(D24/100)*(G2*100) -> 24.5 | H24: =D24-G24 -> 220.5 | I24: 0.2517006803 | J24: =H24-C24 -> 55.5
A25: Fauquier County Department of Fire, Rescue and Emergency Management | B25: Not For Profit | C25: 165 | D25: 895 | E25: 730 | F25: =(D25-C25)/D25 -> 0.8156424581 | G25: =(D25/100)*(G2*100) -> 89.5 | H25: =D25-G25 -> 805.5 | I25: 0.7951582868 | J25: =H25-C25 -> 640.5
A26: Fauquier Community Food Bank and Thrift Store | B26: Not For Profit | C26: 165 | D26: 245 | E26: 80 | F26: =(D26-C26)/D26 -> 0.3265306122 | G26: =(D26/100)*(G2*100) -> 24.5 | H26: =D26-G26 -> 220.5 | I26: 0.2517006803 | J26: =H26-C26 -> 55.5
A27: CASA Children's Intervention Services, Inc. | B27: Not For Profit | C27: 165 | D27: 245 | E27: 80 | F27: =(D27-C27)/D27 -> 0.3265306122 | G27: =(D27/100)*(G2*100) -> 24.5 | H27: =D27-G27 -> 220.5 | I27: 0.2517006803 | J27: =H27-C27 -> 55.5
A28: Aging Together | B28: Not For Profit | C28: 165 | D28: 245 | E28: 80 | F28: =(D28-C28)/D28 -> 0.3265306122 | G28: =(D28/100)*(G2*100) -> 24.5 | H28: =D28-G28 -> 220.5 | I28: 0.2517006803 | J28: =H28-C28 -> 55.5
A29: People Incorporated | B29: Not For Profit | C29: 165 | D29: 345 | E29: 180 | F29: =(D29-C29)/D29 -> 0.5217391304 | G29: =(D29/100)*(G2*100) -> 34.5 | H29: =D29-G29 -> 310.5 | I29: 0.4685990338 | J29: =H29-C29 -> 145.5
A30: Cornerstone Baptist Church | B30: Not For Profit | C30: 165 | D30: 245 | E30: 80 | F30: =(D30-C30)/D30 -> 0.3265306122 | G30: =(D30/100)*(G2*100) -> 24.5 | H30: =D30-G30 -> 220.5 | I30: 0.2517006803 | J30: =H30-C30 -> 55.5
A31: Leadership Fauquier | B31: Not For Profit | C31: 165 | D31: 245 | E31: 80 | F31: =(D31-C31)/D31 -> 0.3265306122 | G31: =(D31/100)*(G2*100) -> 24.5 | H31: =D31-G31 -> 220.5 | I31: 0.2517006803 | J31: =H31-C31 -> 55.5
A32: Fauquier SPCA | B32: Not For Profit | C32: 165 | D32: 345 | E32: 180 | F32: =(D32-C32)/D32 -> 0.5217391304 | G32: =(D32/100)*(G2*100) -> 34.5 | H32: =D32-G32 -> 310.5 | I32: 0.4685990338 | J32: =H32-C32 -> 145.5
A33: Rainforest Trust | B33: Not For Profit | C33: 165 | D33: 245 | E33: 80 | F33: =(D33-C33)/D33 -> 0.3265306122 | G33: =(D33/100)*(G2*100) -> 24.5 | H33: =D33-G33 -> 220.5 | I33: 0.2517006803 | J33: =H33-C33 -> 55.5
A34: Northern Virginia Veterans Association | B34: Not For Profit | C34: 165 | D34: 245 | E34: 80 | F34: =(D34-C34)/D34 -> 0.3265306122 | G34: =(D34/100)*(G2*100) -> 24.5 | H34: =D34-G34 -> 220.5 | I34: 0.2517006803 | J34: =H34-C34 -> 55.5
A35: Piedmont Corvette Club of Virginia | B35: Not For Profit | C35: 165 | D35: 245 | E35: 80 | F35: =(D35-C35)/D35 -> 0.3265306122 | G35: =(D35/100)*(G2*100) -> 24.5 | H35: =D35-G35 -> 220.5 | I35: 0.2517006803 | J35: =H35-C35 -> 55.5
A36: Fauquier Excellence in Education Foundation | B36: Not For Profit | C36: 165 | D36: 245 | E36: 80 | F36: =(D36-C36)/D36 -> 0.3265306122 | G36: =(D36/100)*(G2*100) -> 24.5 | H36: =D36-G36 -> 220.5 | I36: 0.2517006803 | J36: =H36-C36 -> 55.5
A37: Verdun Adventure Bound | B37: Not For Profit | C37: 165 | D37: 245 | E37: 80 | F37: =(D37-C37)/D37 -> 0.3265306122 | G37: =(D37/100)*(G2*100) -> 24.5 | H37: =D37-G37 -> 220.5 | I37: 0.2517006803 | J37: =H37-C37 -> 55.5
A38: VolTran Volunteer Transportation Service | B38: Not For Profit | C38: 165 | D38: 245 | E38: 80 | F38: =(D38-C38)/D38 -> 0.3265306122 | G38: =(D38/100)*(G2*100) -> 24.5 | H38: =D38-G38 -> 220.5 | I38: 0.2517006803 | J38: =H38-C38 -> 55.5
A39: Girls on the Run Piedmont | B39: Not For Profit | C39: 165 | D39: 245 | E39: 80 | F39: =(D39-C39)/D39 -> 0.3265306122 | G39: =(D39/100)*(G2*100) -> 24.5 | H39: =D39-G39 -> 220.5 | I39: 0.2517006803 | J39: =H39-C39 -> 55.5
A40: Warrenton Salvation Army | B40: Not For Profit | C40: 165 | D40: 245 | E40: 80 | F40: =(D40-C40)/D40 -> 0.3265306122 | G40: =(D40/100)*(G2*100) -> 24.5 | H40: =D40-G40 -> 220.5 | I40: 0.2517006803 | J40: =H40-C40 -> 55.5
A41: SpiritWorks Foundation | B41: Not For Profit | C41: 165 | D41: 245 | E41: 80 | F41: =(D41-C41)/D41 -> 0.3265306122 | G41: =(D41/100)*(G2*100) -> 24.5 | H41: =D41-G41 -> 220.5 | I41: 0.2517006803 | J41: =H41-C41 -> 55.5
A42: Semper K9 Assistance Dogs | B42: Not For Profit | C42: 165 | D42: 245 | E42: 80 | F42: =(D42-C42)/D42 -> 0.3265306122 | G42: =(D42/100)*(G2*100) -> 24.5 | H42: =D42-G42 -> 220.5 | I42: 0.2517006803 | J42: =H42-C42 -> 55.5
A43: The Bridge Community Church | B43: Not For Profit | C43: 165 | D43: 245 | E43: 80 | F43: =(D43-C43)/D43 -> 0.3265306122 | G43: =(D43/100)*(G2*100) -> 24.5 | H43: =D43-G43 -> 220.5 | I43: 0.2517006803 | J43: =H43-C43 -> 55.5
A44: Northern Piedmont Sports Club - NPSC | B44: Not For Profit | C44: 165 | D44: 245 | E44: 80 | F44: =(D44-C44)/D44 -> 0.3265306122 | G44: =(D44/100)*(G2*100) -> 24.5 | H44: =D44-G44 -> 220.5 | I44: 0.2517006803 | J44: =H44-C44 -> 55.5
A45: Hero's Bridge | B45: Not For Profit | C45: 165 | D45: 245 | E45: 80 | F45: =(D45-C45)/D45 -> 0.3265306122 | G45: =(D45/100)*(G2*100) -> 24.5 | H45: =D45-G45 -> 220.5 | I45: 0.2517006803 | J45: =H45-C45 -> 55.5
A46: Experience Old Town Warrenton | B46: Not For Profit | C46: 165 | D46: 245 | E46: 80 | F46: =(D46-C46)/D46 -> 0.3265306122 | G46: =(D46/100)*(G2*100) -> 24.5 | H46: =D46-G46 -> 220.5 | I46: 0.2517006803 | J46: =H46-C46 -> 55.5
A47: Journey U.P. Church | B47: Not For Profit | C47: 165 | D47: 245 | E47: 80 | F47: =(D47-C47)/D47 -> 0.3265306122 | G47: =(D47/100)*(G2*100) -> 24.5 | H47: =D47-G47 -> 220.5 | I47: 0.2517006803 | J47: =H47-C47 -> 55.5
A48: Boulder Crest Retreat Foundation | B48: Not For Profit | C48: 165 | D48: 245 | E48: 80 | F48: =(D48-C48)/D48 -> 0.3265306122 | G48: =(D48/100)*(G2*100) -> 24.5 | H48: =D48-G48 -> 220.5 | I48: 0.2517006803 | J48: =H48-C48 -> 55.5
A49: WARRENTON PREGNANCY CENTER | B49: Not For Profit | C49: 165 | D49: 245 | E49: 80 | F49: =(D49-C49)/D49 -> 0.3265306122 | G49: =(D49/100)*(G2*100) -> 24.5 | H49: =D49-G49 -> 220.5 | I49: 0.2517006803 | J49: =H49-C49 -> 55.5
A50: Benevolence United | B50: Not For Profit | C50: 165 | D50: 245 | E50: 80 | F50: =(D50-C50)/D50 -> 0.3265306122 | G50: =(D50/100)*(G2*100) -> 24.5 | H50: =D50-G50 -> 220.5 | I50: 0.2517006803 | J50: =H50-C50 -> 55.5
A51: Miss Commonwealth Scholarship Organization | B51: Not For Profit | C51: 165 | D51: 245 | E51: 80 | F51: =(D51-C51)/D51 -> 0.3265306122 | G51: =(D51/100)*(G2*100) -> 24.5 | H51: =D51-G51 -> 220.5 | I51: 0.2517006803 | J51: =H51-C51 -> 55.5
A52: Middleburg Humane Foundation | B52: Not For Profit | C52: 165 | D52: 245 | E52: 80 | F52: =(D52-C52)/D52 -> 0.3265306122 | G52: =(D52/100)*(G2*100) -> 24.5 | H52: =D52-G52 -> 220.5 | I52: 0.2517006803 | J52: =H52-C52 -> 55.5
A53: St. Michael's Academy | B53: Not For Profit | C53: 165 | D53: 245 | E53: 80 | F53: =(D53-C53)/D53 -> 0.3265306122 | G53: =(D53/100)*(G2*100) -> 24.5 | H53: =D53-G53 -> 220.5 | I53: 0.2517006803 | J53: =H53-C53 -> 55.5
A54: 2ND TO NUNN SPORTS INC. | B54: Not For Profit | C54: 165 | D54: 245 | E54: 80 | F54: =(D54-C54)/D54 -> 0.3265306122 | G54: =(D54/100)*(G2*100) -> 24.5 | H54: =D54-G54 -> 220.5 | I54: =(H54-C54)/H54 -> 0.2517006803 | J54: =H54-C54 -> 55.5
A55: Special Olympics Virginia Area 27 | B55: Not For Profit | C55: 165 | D55: 245 | E55: 80 | F55: =(D55-C55)/D55 -> 0.3265306122 | G55: =(D55/100)*(G2*100) -> 24.5 | H55: =D55-G55 -> 220.5 | I55: =(H55-C55)/H55 -> 0.2517006803 | J55: =H55-C55 -> 55.5
A56: Fauquier County Parks and Recreation | B56: Not For Profit | C56: 165 | D56: 605 | E56: 440 | F56: =(D56-C56)/D56 -> 0.7272727273 | G56: =(D56/100)*(G2*100) -> 60.5 | H56: =D56-G56 -> 544.5 | I56: 0.696969697 | J56: =H56-C56 -> 379.5
A57: Faith Christian Church & International Outreach Center | B57: Not For Profit | C57: 165 | D57: 245 | E57: 80 | F57: =(D57-C57)/D57 -> 0.3265306122 | G57: =(D57/100)*(G2*100) -> 24.5 | H57: =D57-G57 -> 220.5 | I57: 0.2517006803 | J57: =H57-C57 -> 55.5
A58: Great Commission Anglican Church | B58: Not For Profit | C58: 165 | D58: 245 | E58: 80 | F58: =(D58-C58)/D58 -> 0.3265306122 | G58: =(D58/100)*(G2*100) -> 24.5 | H58: =D58-G58 -> 220.5 | I58: 0.2517006803 | J58: =H58-C58 -> 55.5
A59: NAACP Fauquier County Branch 7059-B | B59: Not For Profit | C59: 165 | D59: 245 | E59: 80 | F59: =(D59-C59)/D59 -> 0.3265306122 | G59: =(D59/100)*(G2*100) -> 24.5 | H59: =D59-G59 -> 220.5 | I59: 0.2517006803 | J59: =H59-C59 -> 55.5
A60: Childhelp | B60: Not For Profit | C60: 165 | D60: 245 | E60: 80 | F60: =(D60-C60)/D60 -> 0.3265306122 | G60: =(D60/100)*(G2*100) -> 24.5 | H60: =D60-G60 -> 220.5 | I60: 0.2517006803 | J60: =H60-C60 -> 55.5
A61: Virginia Career Works - Piedmont | B61: Not For Profit | C61: 165 | D61: 245 | E61: 80 | F61: =(D61-C61)/D61 -> 0.3265306122 | G61: =(D61/100)*(G2*100) -> 24.5 | H61: =D61-G61 -> 220.5 | I61: 0.2517006803 | J61: =H61-C61 -> 55.5
A62: Fauquier Youth Orchestra | B62: Not For Profit | C62: 165 | D62: 245 | E62: 80 | F62: =(D62-C62)/D62 -> 0.3265306122 | G62: =(D62/100)*(G2*100) -> 24.5 | H62: =D62-G62 -> 220.5 | I62: 0.2517006803 | J62: =H62-C62 -> 55.5
A63: Nalani Horse Rescue | B63: Not For Profit | C63: 165 | D63: 245 | E63: 80 | F63: =(D63-C63)/D63 -> 0.3265306122 | G63: =(D63/100)*(G2*100) -> 24.5 | H63: =D63-G63 -> 220.5 | I63: 0.2517006803 | J63: =H63-C63 -> 55.5
A64: Ethnos College | B64: Not For Profit | C64: 165 | D64: 245 | E64: 80 | F64: =(D64-C64)/D64 -> 0.3265306122 | G64: =(D64/100)*(G2*100) -> 24.5 | H64: =D64-G64 -> 220.5 | I64: 0.2517006803 | J64: =H64-C64 -> 55.5
A65: Heartland Hospice | B65: Not For Profit | C65: 165 | D65: 245 | E65: 80 | F65: =(D65-C65)/D65 -> 0.3265306122 | G65: =(D65/100)*(G2*100) -> 24.5 | H65: =D65-G65 -> 220.5 | I65: 0.2517006803 | J65: =H65-C65 -> 55.5
A66: Family Shelter Services | B66: Not For Profit | C66: 165 | D66: 245 | E66: 80 | F66: =(D66-C66)/D66 -> 0.3265306122 | G66: =(D66/100)*(G2*100) -> 24.5 | H66: =D66-G66 -> 220.5 | I66: 0.2517006803 | J66: =H66-C66 -> 55.5
A67: Northern Virginia Food Rescue | B67: Not For Profit | C67: 165 | D67: 245 | E67: 80 | F67: =(D67-C67)/D67 -> 0.3265306122 | G67: =(D67/100)*(G2*100) -> 24.5 | H67: =D67-G67 -> 220.5 | I67: 0.2517006803 | J67: =H67-C67 -> 55.5
A68: Hospice Support of Fauquier County | B68: Not For Profit | C68: 165 | D68: 245 | E68: =D68-C68 -> 80 | F68: =(D68-C68)/D68 -> 0.3265306122 | G68: =(D68/100)*(G2*100) -> 24.5 | H68: =D68-G68 -> 220.5 | I68: 0.2517006803 | J68: =H68-C68 -> 55.5
A69: Foundations First | B69: Not For Profit | C69: 165 | D69: 245 | E69: 80 | F69: =(D69-C69)/D69 -> 0.3265306122 | G69: =(D69/100)*(G2*100) -> 24.5 | H69: =D69-G69 -> 220.5 | I69: 0.2517006803 | J69: =H69-C69 -> 55.5
A70: Base-Kamp | B70: Not For Profit | C70: 165 | D70: 245 | E70: 80 | F70: =(D70-C70)/D70 -> 0.3265306122 | G70: =(D70/100)*(G2*100) -> 24.5 | H70: =D70-G70 -> 220.5 | I70: 0.2517006803 | J70: =H70-C70 -> 55.5
A71: Hope Theater LLC | B71: Not For Profit | C71: 165 | D71: 245 | E71: 80 | F71: =(D71-C71)/D71 -> 0.3265306122 | G71: =(D71/100)*(G2*100) -> 24.5 | H71: =D71-G71 -> 220.5 | I71: 0.2517006803 | J71: =H71-C71 -> 55.5
A72: The LEAP Foundation | B72: Not For Profit | C72: 165 | D72: 245 | E72: 80 | F72: =(D72-C72)/D72 -> 0.3265306122 | G72: =(D72/100)*(G2*100) -> 24.5 | H72: =D72-G72 -> 220.5 | I72: 0.2517006803 | J72: =H72-C72 -> 55.5
A73: Afriwic International Organization | B73: Not For Profit | C73: 165 | D73: 245 | E73: 80 | F73: =(D73-C73)/D73 -> 0.3265306122 | G73: =(D73/100)*(G2*100) -> 24.5 | H73: =D73-G73 -> 220.5 | I73: 0.2517006803 | J73: =H73-C73 -> 55.5
A74: Community Investment Collaborative | B74: Not For Profit | C74: 165 | D74: 245 | E74: 80 | F74: =(D74-C74)/D74 -> 0.3265306122 | G74: =(D74/100)*(G2*100) -> 24.5 | H74: =D74-G74 -> 220.5 | I74: 0.2517006803 | J74: =H74-C74 -> 55.5
A75: FRC Fellowship of Christian Athletes (Fauquier, Rappahannock, Culpeper) | B75: Not For Profit | C75: 165 | D75: 245 | E75: 80 | F75: =(D75-C75)/D75 -> 0.3265306122 | G75: =(D75/100)*(G2*100) -> 24.5 | H75: =D75-G75 -> 220.5 | I75: 0.2517006803 | J75: =H75-C75 -> 55.5
A76: Saint John the Evangelist Catholic School | B76: Not For Profit | C76: 165 | D76: 345 | E76: 180 | F76: =(D76-C76)/D76 -> 0.5217391304 | G76: =(D76/100)*(G2*100) -> 34.5 | H76: =D76-G76 -> 310.5 | I76: =(H76-C76)/H76 -> 0.4685990338 | J76: =H76-C76 -> 145.5
C77: =SUM(C3:C76) -> 12195 | D77: =SUM(D3:D76) -> 22489 | E77: =SUM(E3:E76) -> 10294 | F77: =AVERAGE(F3:F76) -> 0.3795280356 | G77: =AVERAGE(G3:G76) -> 30.39054054 | H77: =SUM(H3:H76) -> 20240.1 | I77: =AVERAGE(I3:I76) -> 0.3105867062 | J77: =SUM(J3:J76) -> 8045.1
C78: Annual Value of Current Assigned Fees | D78: Annual Value of Adjusted Assigned Fees to EMP Count | E78: Difference between Current v. Adjusted | F78: Avg. Percentage Difference Current v. Adjusted | G78: Avg Member Increase Assigned Fees to EMP Count Less % discount | H78: Annual Value of Adjusted Assigned Fees to EMP Count with % Discount | I78: Avg. Percentage Difference Current v. Adjusted Less % discount | J78: Difference between Current v. Adjusted Less % discount

Sheet Agriculture
B1: Current Assigned Fees | C1: Current Rate | D1: EMP Rate | E1: $ Increase (Current v. EMP) | F1: % Increase (Current v. EMP) | G1: EMP Total Less | H1: EMP Rate Less | I1: % Increase (Current v. EMP Less) | J1: $ Increase (Current v. EMP Less)
G2: 0 | H2: =G2 -> 0 | I2: =G2 -> 0 | J2: =G2 -> 0
A3: Arterra Wines | B3: Agriculture | C3: 200 | D3: 245 | E3: =D3-C3 -> 45 | F3: =E3/D3 -> 0.1836734694 | G3: =(D3/100)*(G2*100) -> 0 | H3: =D3-G3 -> 245 | I3: =(H3-C3)/H3 -> 0.1836734694 | J3: =H3-C3 -> 45
A4: 4P Foods | B4: Agriculture | C4: 200 | D4: 245 | E4: =D4-C4 -> 45 | F4: =E4/D4 -> 0.1836734694 | G4: =(D4/100)*(G2*100) -> 0 | H4: =D4-G4 -> 245 | I4: 0.1836734694 | J4: =H4-C4 -> 45
A5: Naked Mountain Winery | B5: Agriculture | C5: 200 | D5: 245 | E5: 45 | F5: =(D5-C5)/D5 -> 0.1836734694 | G5: =(D5/100)*(G2*100) -> 0 | H5: =D5-G5 -> 245 | I5: 0.1836734694 | J5: =H5-C5 -> 45
A6: Ovoka Farm | B6: Agriculture | C6: 200 | D6: 245 | E6: 45 | F6: =(D6-C6)/D6 -> 0.1836734694 | G6: =(D6/100)*(G2*100) -> 0 | H6: =D6-G6 -> 245 | I6: 0.1836734694 | J6: =H6-C6 -> 45
A7: Moo Thru Mobile Warrenton | B7: Agriculture | C7: 200 | D7: 245 | E7: 45 | F7: =(D7-C7)/D7 -> 0.1836734694 | G7: =(D7/100)*(G2*100) -> 0 | H7: =D7-G7 -> 245 | I7: 0.1836734694 | J7: =H7-C7 -> 45
A8: Hidden Hills Hemp | B8: Agriculture | C8: 200 | D8: 245 | E8: 45 | F8: =(D8-C8)/D8 -> 0.1836734694 | G8: =(D8/100)*(G2*100) -> 0 | H8: =D8-G8 -> 245 | I8: 0.1836734694 | J8: =H8-C8 -> 45
A9: Barking Rose Brewing Co. + Farm | B9: Agriculture | C9: 200 | D9: 245 | E9: 45 | F9: =(D9-C9)/D9 -> 0.1836734694 | G9: =(D9/100)*(G2*100) -> 0 | H9: =D9-G9 -> 245 | I9: 0.1836734694 | J9: =H9-C9 -> 45
A10: Jeff Metz LLC - Forestry Mulching and Tree Felling | B10: Agriculture | C10: 200 | D10: 245 | E10: 45 | F10: =(D10-C10)/D10 -> 0.1836734694 | G10: =(D10/100)*(G2*100) -> 0 | H10: =D10-G10 -> 245 | I10: 0.1836734694 | J10: =H10-C10 -> 45
A11: Horse Sense Balanced Optimal Nutrition, LLC | B11: Agriculture | C11: 200 | D11: 245 | E11: 45 | F11: =(D11-C11)/D11 -> 0.1836734694 | G11: =(D11/100)*(G2*100) -> 0 | H11: =D11-G11 -> 245 | I11: 0.1836734694 | J11: =H11-C11 -> 45
A12: Farm Credit of the Virginia's | B12: Agriculture | C12: 200 | D12: 245 | E12: 45 | F12: =(D12-C12)/D12 -> 0.1836734694 | G12: =(D12/100)*(G2*100) -> 0 | H12: =D12-G12 -> 245 | I12: 0.1836734694 | J12: =H12-C12 -> 45
A13: Paws For Holistic Pet Care | B13: Agriculture | C13: 200 | D13: 245 | E13: 45 | F13: =(D13-C13)/D13 -> 0.1836734694 | G13: =(D13/100)*(G2*100) -> 0 | H13: =D13-G13 -> 245 | I13: 0.1836734694 | J13: =H13-C13 -> 45
A14: Nova Hemp | B14: Agriculture | C14: 200 | D14: 245 | E14: 45 | F14: =(D14-C14)/D14 -> 0.1836734694 | G14: =(D14/100)*(G2*100) -> 0 | H14: =D14-G14 -> 245 | I14: 0.1836734694 | J14: =H14-C14 -> 45
A15: Ahlstrom Farms | B15: Agriculture | C15: 200 | D15: 245 | E15: 45 | F15: =(D15-C15)/D15 -> 0.1836734694 | G15: =(D15/100)*(G2*100) -> 0 | H15: =D15-G15 -> 245 | I15: 0.1836734694 | J15: =H15-C15 -> 45
A16: Crimson Lane Vineyards | B16: Agriculture | C16: 200 | D16: 245 | E16: 45 | F16: =(D16-C16)/D16 -> 0.1836734694 | G16: =(D16/100)*(G2*100) -> 0 | H16: =D16-G16 -> 245 | I16: 0.1836734694 | J16: =H16-C16 -> 45
A17: 4Js Farm & Brewery | B17: Agriculture | C17: 200 | D17: 245 | E17: 45 | F17: =(D17-C17)/D17 -> 0.1836734694 | G17: =(D17/100)*(G2*100) -> 0 | H17: =D17-G17 -> 245 | I17: 0.1836734694 | J17: =H17-C17 -> 45
C18: =SUM(C3:C17) -> 3000 | D18: =SUM(D3:D17) -> 3675 | E18: =SUM(E3:E17) -> 675 | F18: =AVERAGE(F3:F17) -> 0.1836734694 | G18: =AVERAGE(G3:G17) -> 0 | H18: =SUM(H3:H17) -> 3675 | I18: =AVERAGE(I3:I17) -> 0.1836734694 | J18: =SUM(J3:J17) -> 675
C19: Annual Value of Current Assigned Fees | D19: Annual Value of Adjusted Assigned Fees to EMP Count | E19: Difference between Current v. Adjusted | F19: Avg. Percentage Difference Current v. Adjusted | G19: Avg Member Increase Assigned Fees to EMP Count Less % discount | H19: Annual Value of Adjusted Assigned Fees to EMP Count with % Discount | I19: Avg. Percentage Difference Current v. Adjusted Less % discount | J19: Difference between Current v. Adjusted Less % discount
